fUST/lending_fUST_20260122
["ID","MTS","AMOUNT","RATE_DAILY","PERIOD"]
[403032578,1769092242928,-1648.53,0.00019835,2]
[403032579,1769092242937,-1648.53,0.00019835,2]
[403032580,1769092242946,-1648.53,0.00019835,2]
[403032581,1769092242955,-1648.53,0.00019835,2]
[403032583,1769092242967,-1648.53,0.00019835,2]
[403032585,1769092242983,-303.10001603,0.00019845,4]
[403032586,1769092242993,-249.44411208,0.00019994,40]
[403032587,1769092243002,-3344.46530209,0.0002,5]
[403032588,1769092243011,-3001.786204,0.0002,7]
[403032589,1769092243021,-1000.0,0.0002,2]
[403032590,1769092243030,-194.69147406,0.0002,2]
[403032591,1769092243040,-2000.0,0.0002,7]
[403032592,1769092243050,-170.1660024,0.00020008,14]
[403032593,1769092243059,-201.0,0.00020242,120]
[403032594,1769092243069,-432.83375958,0.0002025,2]
[403032595,1769092243078,-170.1660024,0.00020359,16]
[403032596,1769092243087,-2000.0,0.000205,7]
[403032597,1769092243096,-204.0,0.0002052,2]
[403032598,1769092243105,-150.13166595,0.00020687,48]
[403032599,1769092243115,-170.1660024,0.0002071,17]
[403032600,1769092243124,-249.44411208,0.00020745,48]
[403032601,1769092243133,-908.2482101,0.00020774,2]
[403032602,1769092243142,-159.0,0.000209,5]
[403032603,1769092243153,-159.63555683,0.000209,4]
[403032604,1769092243162,-3000.0,0.00021,2]
[403032605,1769092243171,-3500.0,0.00021,2]
[403032606,1769092243180,-2000.0,0.00021,7]
[403032607,1769092243190,-5691.524417,0.0002101,2]
[403032608,1769092243199,-630.061915,0.0002106,7]
[403032609,1769092243208,-170.1660024,0.00021061,19]
[403032610,1769092243217,-1724.920421,0.00021128,7]
[403032611,1769092243227,-1996.4,0.000212,2]
[403032612,1769092243237,-677.149273,0.00021228,7]
[403032613,1769092243246,-201.0,0.00021254,120]
[403032614,1769092243255,-1426.64196,0.00021275,7]
[403032615,1769092243265,-5903.283173,0.00021384,7]
[403032616,1769092243274,-560.003241,0.00021384,7]
[403032617,1769092243283,-170.1660024,0.00021412,21]
[403032618,1769092243292,-259.63048699,0.00021428,56]
[403032619,1769092243301,-202.6575685,0.00021477,2]
[403032620,1769092243310,-249.44411208,0.00021496,56]
[403032621,1769092243319,-2000.0,0.000215,7]
[403032622,1769092243328,-157.40537128,0.00021562,30]
[403032623,1769092243338,-857.653201,0.000216,7]
[403032624,1769092243347,-151.0,0.000217,3]
[403032625,1769092243356,-170.1660024,0.00021763,23]
[403032626,1769092243365,-231.48465399,0.00021808,56]
[403032627,1769092243374,-157.40537128,0.00021836,30]
[403032628,1769092243383,-29785.68073098,0.00022,2]
[403032629,1769092243392,-2000.0,0.00022,7]
[403032630,1769092243402,-708.628,0.00022023,2]
[403032631,1769092243412,-417.0,0.00022023,2]
[403032632,1769092243421,-178.0,0.00022023,2]
[403032633,1769092243431,-159.16,0.00022044,2]
[403032634,1769092243441,-157.40537128,0.0002211,30]
[403032635,1769092243450,-170.1660024,0.00022114,24]
[403032636,1769092243460,-150.13166595,0.00022169,63]
[403032637,1769092243470,-254.96908,0.00022169,30]
[403032638,1769092243479,-249.44411208,0.00022247,63]
[403032639,1769092243488,-199.10847297,0.00022287,2]
[403032640,1769092243497,-151.0,0.000223,7]
[403032641,1769092243506,-201.0,0.00022317,120]
[403032642,1769092243516,-295.164158,0.00022317,30]
[403032643,1769092243526,-157.40537128,0.00022411,30]
[403032644,1769092243535,-170.1660024,0.00022465,26]
[403032645,1769092243545,-669.691521,0.00022465,30]
[403032646,1769092243554,-4430.87,0.00022465,4]
[403032647,1769092243564,-2000.0,0.000225,7]
[403032648,1769092243573,-231.0,0.0002252,2]
[403032649,1769092243582,-2951.641587,0.000226,30]
[403032650,1769092243591,-448.378221,0.000226,30]
[403032651,1769092243601,-1996.4,0.000227,14]
[403032652,1769092243610,-527.4,0.00022706,2]
[403032653,1769092243619,-500.0,0.00022706,2]
[403032654,1769092243629,-279.739399,0.00022706,30]
[403032655,1769092243638,-170.1660024,0.00022816,28]
[403032656,1769092243648,-634.88238303,0.00022893,5]
[403032657,1769092243657,-151.0,0.000229,5]
[403032658,1769092243667,-192.162094,0.00022915,30]
[403032659,1769092243677,-249.44411208,0.00022998,71]
[403032660,1769092243687,-334.44259278,0.00023,12]
[403032661,1769092243696,-151.0,0.00023,7]
[403032662,1769092243706,-167.0,0.00023,7]
[403032663,1769092243715,-2000.0,0.00023,7]
[403032664,1769092243724,-151.0,0.00023057,2]
[403032665,1769092243733,-300.2,0.000231,2]
[403032666,1769092243742,-204.09920288,0.00023167,30]
[403032667,1769092243751,-2263.97,0.00023254,2]
[403032668,1769092243761,-623.48,0.000233,4]
[403032669,1769092243770,-201.0,0.00023433,120]
[403032670,1769092243779,-10000.0,0.00023469,7]
[403032671,1769092243789,-10000.0,0.00023469,7]
[403032672,1769092243798,-10000.0,0.00023469,7]
[403032673,1769092243807,-10000.0,0.00023469,7]
[403032674,1769092243816,-10000.0,0.00023469,7]
[403032675,1769092243826,-10000.0,0.00023469,7]
[403032676,1769092243835,-6329.0,0.00023469,7]
[403032677,1769092243849,-2000.0,0.000235,7]
[403032678,1769092243858,-151.0,0.00023528,2]
[403032679,1769092243868,-1398.49,0.00023543,2]
[403032680,1769092243877,-1398.49,0.00023543,2]
[403032681,1769092243887,-1398.49,0.0002357,2]
[403032682,1769092243897,-2263.97,0.0002358,2]
[403032683,1769092243906,-2263.97,0.0002358,2]
[403032684,1769092243918,-2263.97,0.0002358,2]
[403032685,1769092243929,-2263.97,0.0002358,2]
[403032686,1769092243939,-2263.97,0.0002358,2]
[403032687,1769092243948,-2263.97,0.0002358,2]
[403032688,1769092243957,-2263.97,0.0002358,2]
[403032689,1769092243967,-2263.97,0.0002358,2]
[403032690,1769092243981,-2263.97,0.0002358,2]
[403032691,1769092243991,-2263.97,0.0002358,2]
[403032692,1769092244001,-2263.97,0.0002358,2]
[403032693,1769092244011,-2263.97,0.0002358,2]
[403032694,1769092244021,-2263.97,0.0002358,2]
[403032695,1769092244031,-2263.97,0.0002358,2]
[403032696,1769092244041,-2263.97,0.0002358,2]
[403032697,1769092244050,-2263.97,0.0002358,2]
[403032698,1769092244060,-2264.20929649,0.0002358,2]
[403032699,1769092244070,-1398.49,0.0002358,2]
[403032700,1769092244080,-1398.49,0.0002358,2]
[403032701,1769092244090,-1398.49,0.0002358,2]
[403032702,1769092244100,-1398.49,0.0002358,2]
[403032703,1769092244110,-1398.49,0.0002358,2]
[403032704,1769092244119,-1398.49,0.0002358,2]
[403032705,1769092244130,-1398.49,0.0002358,2]
[403032706,1769092244140,-1398.49,0.0002358,2]
[403032707,1769092244150,-1398.49,0.0002358,2]
[403032708,1769092244159,-1398.49,0.0002358,2]
[403032709,1769092244172,-1398.49,0.0002358,2]
[403032710,1769092244182,-1398.49,0.0002358,2]
[403032711,1769092244192,-1398.49,0.0002358,2]
[403032712,1769092244201,-1398.49,0.0002358,2]
[403032713,1769092244210,-1398.49,0.0002358,2]
[403032714,1769092244219,-1398.49,0.0002358,2]
[403032715,1769092244229,-1398.49,0.0002358,2]
[403032716,1769092244239,-1398.49,0.0002358,2]
[403032717,1769092244248,-1398.49,0.0002358,2]
[403032718,1769092244257,-1398.49,0.0002358,2]
[403032719,1769092244266,-1398.63199018,0.0002358,2]
[403032720,1769092244276,-527.4,0.0002358,2]
[403032721,1769092244285,-527.4,0.0002358,2]
[403032722,1769092244295,-527.4,0.0002358,2]
[403032723,1769092244304,-527.4,0.0002358,2]
[403032724,1769092244314,-527.4,0.0002358,2]
[403032725,1769092244324,-527.4,0.0002358,2]
[403032726,1769092244334,-527.4,0.0002358,2]
[403032727,1769092244343,-527.4,0.0002358,2]
[403032728,1769092244353,-527.4,0.0002358,2]
[403032729,1769092244362,-527.4,0.0002358,2]
[403032730,1769092244372,-527.4,0.0002358,2]
[403032731,1769092244382,-527.4,0.0002358,2]
[403032732,1769092244392,-527.4,0.0002358,2]
[403032733,1769092244402,-527.4,0.0002358,2]
[403032734,1769092244411,-527.4,0.0002358,2]
[403032735,1769092244423,-527.4,0.0002358,2]
[403032736,1769092244432,-527.46353101,0.0002358,2]
[403032737,1769092244442,-500.0,0.0002358,2]
[403032738,1769092244451,-500.0,0.0002358,2]
[403032739,1769092244461,-500.0,0.0002358,2]
[403032740,1769092244470,-500.0,0.0002358,2]
[403032741,1769092244480,-315.99821874,0.0002358,2]
[403032742,1769092244490,-150.13166595,0.0002365,79]
[403032743,1769092244500,-249.44411208,0.00023748,79]
[403032744,1769092244510,-1996.4,0.000239,14]
[403032745,1769092244520,-7721.73567909,0.000239,2]
[403032746,1769092244530,-2000.0,0.00024,7]
[403032747,1769092244540,-288203.53589309,0.00024,7]
[403032748,1769092244550,-1000.0,0.00024,24]
[403032749,1769092244560,-688.0,0.00024,7]
[403032750,1769092244570,-422.05,0.00024,14]
[403032751,1769092244580,-1000.0,0.00024,2]
[403032752,1769092244590,-10000.0,0.00024,2]
[403032753,1769092244599,-124128.17908479,0.00024,2]
[403032754,1769092244609,-10000.0,0.00024,2]
[403032755,1769092244619,-10000.0,0.00024,2]
[403032756,1769092244628,-10000.0,0.00024,2]
[403032757,1769092244638,-10000.0,0.00024,2]
[403032758,1769092244648,-10000.0,0.00024,2]
[403032759,1769092244657,-1000.0,0.00024,15]
[403032760,1769092244667,-52607.42452751,0.00024,7]
[403032761,1769092245197,-1976.77224746,0.00024,7]
[403032762,1769092245226,-348.0,0.00018063,2]
[403032763,1769092245235,-2.0842972,0.00024,7]
[403032777,1769092245816,-350.0032578,0.00024,7]
[403032778,1769092245899,-494.57928561,0.00024,7]
[403032779,1769092245909,-3819.29379905,0.00024,7]
[403032780,1769092246007,-863.07857996,0.00018247,2]
[403033070,1769092680963,216.81,3.996e-05,2]
[403033071,1769092681489,216.81,3.996e-05,2]
[403033072,1769092681832,216.81,3.996e-05,2]
[403033277,1769093068924,-300.0,0.00016602,2]
[403033278,1769093068955,-500.0,0.00016603,2]
[403033279,1769093068985,-500.0,0.00016603,2]
[403033280,1769093069014,-500.0,0.00016603,2]
[403033281,1769093069046,-500.0,0.00016603,2]
[403033282,1769093069085,-500.0,0.00016603,2]
[403033283,1769093069121,-500.0,0.00016603,2]
[403033284,1769093069152,-500.0,0.00016603,2]
[403033285,1769093069183,-500.0,0.00016603,2]
[403033286,1769093069213,-662.0,0.00016603,2]
[403033287,1769093071723,-150.0,0.00016663,2]
[403033292,1769093101344,300.0,0.00016662,2]
[403033293,1769093102442,300.0,0.00016662,2]
[403033294,1769093102654,300.0,0.00016662,2]
[403033295,1769093106486,1200.0,0.00016662,2]
[403033296,1769093107045,300.0,0.00016662,2]
[403033297,1769093112505,5000.0,0.00016663,2]
[403033298,1769093162730,300.0,0.00016662,2]
[403033299,1769093163576,150.0,0.00016066,2]
[403033300,1769093189553,500.0,0.00016662,2]
[403033301,1769093189583,305.64927663,0.00016662,2]
[403033302,1769093189615,500.0,0.00016662,2]
[403033303,1769093189646,500.0,0.00016662,2]
[403033304,1769093189676,44.36072337,0.00016662,2]
[403033305,1769093189701,177.77755211,0.00016662,2]
[403033306,1769093189732,500.0,0.00016662,2]
[403033307,1769093189766,500.0,0.00016662,2]
[403033308,1769093190023,500.0,0.00016662,2]
[403033309,1769093190052,577.25211387,0.00016662,2]
[403033310,1769093190084,500.0,0.00016662,2]
[403033311,1769093190112,500.0,0.00016662,2]
[403033312,1769093190141,500.0,0.00016662,2]
[403033313,1769093190170,500.0,0.00016662,2]
[403033314,1769093190201,500.0,0.00016662,2]
[403033315,1769093190230,500.0,0.00016662,2]
[403033316,1769093190261,500.0,0.00016662,2]
[403033317,1769093190290,487.56189577,0.00016662,2]
[403033318,1769093190320,449.85721053,0.00016662,2]
[403033319,1769093190349,500.0,0.00016662,2]
[403033320,1769093190382,500.0,0.00016662,2]
[403033321,1769093190412,500.0,0.00016662,2]
[403033322,1769093190446,500.0,0.00016662,2]
[403033323,1769093190481,500.0,0.00016662,2]
[403033324,1769093190511,500.0,0.00016662,2]
[403033325,1769093190535,307.56122772,0.00016662,2]
[403033326,1769093190559,192.43877228,0.00016662,2]
[403033327,1769093190591,500.0,0.00016662,2]
[403033328,1769093190620,500.0,0.00016662,2]
[403033329,1769093190655,500.0,0.00016662,2]
[403033330,1769093190687,500.0,0.00016662,2]
[403033331,1769093190717,500.0,0.00016662,2]
[403033332,1769093190748,500.0,0.00016662,2]
[403033333,1769093190780,500.0,0.00016662,2]
[403033334,1769093190810,500.0,0.00016662,2]
[403033335,1769093190840,500.0,0.00016662,2]
[403033336,1769093190868,500.0,0.00016662,2]
[403033337,1769093190899,500.0,0.00016662,2]
[403033338,1769093190928,500.0,0.00016662,2]
[403033339,1769093190959,500.0,0.00016662,2]
[403033340,1769093190990,500.0,0.00016662,2]
[403033341,1769093191021,500.0,0.00016662,2]
[403033342,1769093191053,500.0,0.00016662,2]
[403033343,1769093191084,500.0,0.00016662,2]
[403033344,1769093191114,500.0,0.00016662,2]
[403033345,1769093191148,500.0,0.00016662,2]
[403033346,1769093191177,307.57122772,0.00016662,2]
[403033349,1769093235257,150.0,0.0001563,2]
[403033353,1769093272469,-333.78919578,0.00016562,2]
[403033354,1769093284946,-300.0,0.00016563,2]
[403033355,1769093288080,-2154.92411906,0.00016564,2]
[403033356,1769093290945,-10000.01,0.00016564,2]
[403033362,1769093297630,-4439.90780966,0.00016564,2]
[403033363,1769093297657,-1120.19438068,0.00016564,2]
[403033368,1769093300618,-1398.49,0.00016603,2]
[403033369,1769093300653,-1398.49,0.00016603,2]
[403033370,1769093300687,-1398.49,0.00016603,2]
[403033371,1769093300720,-210.58,0.00016603,2]
[403033372,1769093300794,-1187.91,0.00016603,2]
[403033375,1769093315881,300.0,0.00016242,2]
[403033407,1769093324185,5000.0,0.00016242,2]
[403033433,1769093359986,-5000.0,0.00016495,2]
[403033434,1769093364937,-300.0,0.00016661,2]
[403033435,1769093365013,-4100.02,0.00016662,2]
[403033436,1769093365498,-10000.01,0.00016662,2]
[403033447,1769093378773,-5000.0,0.00016495,2]
[403033448,1769093378887,-0.01,0.00016662,2]
[403033456,1769093385162,-10000.01,0.00016662,2]
[403033470,1769093412100,5000.0,0.00016242,2]
[403033510,1769093431878,-306.26,0.00016495,2]
[403033629,1769093433949,5000.01,0.000162,2]
[403033633,1769093433976,8546.99,0.000162,2]
[403033863,1769093437916,-3396.96133549,0.00016495,2]
[403033864,1769093437927,-266.72,0.00016495,2]
[403033865,1769093437940,-1011.48866451,0.00016495,2]
[403033866,1769093437949,-660.0,0.00016495,2]
[403033867,1769093437959,-300.0,0.00016661,2]
[403033868,1769093437969,-2983.73580544,0.00016662,2]
[403033869,1769093437980,-7803.00975934,0.00016662,2]
[403033870,1769093437992,-3284.56360708,0.00016662,2]
[403033871,1769093438003,-482.24165179,0.00016662,2]
[403033872,1769093438015,-18526.66895582,0.00016662,2]
[403033873,1769093438024,-192.42877228,0.00016662,2]
[403033874,1769093438034,-500.0,0.00016662,2]
[403033875,1769093438043,-500.0,0.00016662,2]
[403033876,1769093438053,-500.0,0.00016662,2]
[403033877,1769093438063,-500.0,0.00016662,2]
[403033878,1769093438072,-500.0,0.00016662,2]
[403033879,1769093438082,-500.0,0.00016662,2]
[403033880,1769093438091,-500.0,0.00016662,2]
[403033881,1769093438101,-500.0,0.00016662,2]
[403033882,1769093438111,-500.0,0.00016662,2]
[403033883,1769093438120,-500.0,0.00016662,2]
[403033884,1769093438130,-500.0,0.00016662,2]
[403033885,1769093438139,-500.0,0.00016662,2]
[403033886,1769093438149,-500.0,0.00016662,2]
[403033887,1769093438158,-500.0,0.00016662,2]
[403033888,1769093438167,-647.36307383,0.00016662,2]
[403033889,1769093438177,-500.0,0.00016662,2]
[403033890,1769093438186,-500.0,0.00016662,2]
[403033891,1769093438196,-500.0,0.00016662,2]
[403033892,1769093438205,-500.0,0.00016662,2]
[403033893,1769093438215,-150.0,0.00016992,2]
[403033894,1769093438224,-555.73491748,0.00017097,2]
[403033895,1769093438234,-500.0,0.00017098,2]
[403033896,1769093438243,-315.99821874,0.00017098,2]
[403033897,1769093438253,-1398.49,0.00017098,2]
[403033898,1769093438262,-172.7795159,0.00017148,2]
[403033899,1769093438271,-500.0,0.00017387,2]
[403033900,1769093438281,-1398.49,0.00017387,2]
[403033901,1769093438290,-500.0,0.00017552,2]
[403033902,1769093438299,-1398.49,0.00017552,2]
[403033903,1769093438310,-500.0,0.00017652,2]
[403033904,1769093438319,-500.0,0.00017652,2]
[403033905,1769093438328,-500.0,0.00017652,2]
[403033906,1769093438337,-1398.49,0.00017652,2]
[403033907,1769093438346,-1398.49,0.00017652,2]
[403033909,1769093438355,-1398.49,0.00017652,2]
[403033911,1769093438365,-172.4593827,0.00017717,2]
[403033913,1769093438374,-500.0,0.00017798,2]
[403033915,1769093438383,-1398.49,0.00017798,2]
[403033917,1769093438392,-500.0,0.00017864,2]
[403033919,1769093438402,-328.86353101,0.00017864,2]
[403033920,1769093438411,-1398.49,0.00017864,2]
[403033922,1769093438420,-1398.49,0.00017864,2]
[403033924,1769093438429,-1398.49,0.000181,2]
[403033926,1769093438440,-420.0,0.00018204,2]
[403033928,1769093438454,-1041.66666667,0.00018214,2]
[403033930,1769093438464,-461.67526834,0.00018294,2]
[403033932,1769093438473,-168.3888056,0.00018294,2]
[403033934,1769093438483,-174.61919141,0.00018294,2]
[403033936,1769093438492,-181.08010149,0.00018294,2]
[403033938,1769093438501,-187.78006525,0.00018294,2]
[403033940,1769093438511,-194.72792766,0.00018294,2]
[403033942,1769093438522,-201.93286099,0.00018294,2]
[403033944,1769093438531,-209.40437684,0.00018294,2]
[403033946,1769093438540,-151.0,0.00018294,2]
[403033948,1769093438549,-217.15233878,0.00018294,2]
[403033950,1769093438559,-225.18697532,0.00018294,2]
[403033952,1769093438568,-233.51889341,0.00018294,2]
[403033954,1769093438577,-213.56831467,0.00018294,2]
[403033956,1769093438587,-1398.49,0.00018298,2]
[403033958,1769093438596,-333.78919577,0.00018372,2]
[403033961,1769093438609,-150.0,0.00018408,2]
[403033963,1769093438618,-151.767,0.0001852,2]
[403033965,1769093438627,-1398.49,0.00018599,2]
[403033966,1769093438637,-151.01,0.00018704,2]
[403033968,1769093438646,-225.77658772,0.00018753,2]
[403033969,1769093438655,-524.80222932,0.00018842,2]
[403033971,1769093438665,-177.0,0.00018851,2]
[403033973,1769093438675,-1398.49,0.00018999,2]
[403033975,1769093438684,-537.01,0.000192,2]
[403033977,1769093438694,-268.01,0.00019216,2]
[403033979,1769093438704,-708.628,0.00019233,2]
[403033981,1769093438714,-417.0,0.00019233,2]
[403033983,1769093438723,-178.0,0.00019233,2]
[403033985,1769093438732,-1074.01,0.00019323,2]
[403033987,1769093438742,-1398.49,0.00019442,2]
[403033990,1769093438752,-969.5,0.00019583,5]
[403033991,1769093438762,-1398.49,0.00019799,2]
[403033994,1769093438772,-1398.49,0.00019799,2]
[403033996,1769093438781,-1398.49,0.00019799,2]
[403033998,1769093438791,-1398.49,0.00019799,2]
[403034000,1769093438800,-1398.49,0.00019799,2]
[403034002,1769093438809,-1398.63199018,0.00019799,2]
[403034004,1769093438819,-150.15,0.000198,2]
[403034006,1769093438829,-406.39785789,0.0001987,2]
[403034008,1769093438838,-333.78919577,0.00020181,2]
[403034010,1769093438847,-500.0,0.00020421,2]
[403034012,1769093438857,-500.0,0.00020421,2]
[403034014,1769093438867,-150.0,0.00020421,2]
[403034016,1769093438877,-500.0,0.00020558,2]
[403034018,1769093438886,-500.0,0.00020558,2]
[403034020,1769093438895,-500.0,0.00020695,2]
[403034022,1769093438905,-634.0,0.00020695,2]
[403034024,1769093438915,-200.0,0.00020695,2]
[403034026,1769093438924,-500.0,0.00020696,2]
[403034028,1769093438933,-500.0,0.00020696,2]
[403034030,1769093438943,-500.0,0.00020696,2]
[403034032,1769093438952,-500.0,0.00020832,2]
[403034034,1769093438962,-204.0,0.00020851,2]
[403034036,1769093438972,-500.0,0.00020969,2]
[403034038,1769093438981,-722.4850807,0.00020987,2]
[403034040,1769093438991,-500.0,0.00021106,2]
[403034042,1769093439000,-150.0,0.0002124,2]
[403034044,1769093439011,-500.0,0.00021243,2]
[403034045,1769093439022,-500.0,0.0002138,2]
[403034047,1769093439033,-500.0,0.00021517,2]
[403034049,1769093439043,-500.0,0.00021654,2]
[403034050,1769093439054,-500.0,0.00021791,2]
[403034052,1769093439063,-220.74,0.00021928,2]
[403034054,1769093439074,-333.78919577,0.00021991,2]
[403034056,1769093439083,-167.0,0.00022,2]
[403034058,1769093439092,-157.40537128,0.00022055,30]
[403034059,1769093439102,-178.0,0.00022233,2]
[403034061,1769093439112,-157.40537128,0.00022329,30]
[403034063,1769093439121,-157.40537128,0.0002263,30]
[403034064,1769093439131,-159.12,0.00022656,2]
[403034066,1769093439141,-231.0,0.00022851,2]
[403034068,1769093439151,-157.40537128,0.00022932,30]
[403034070,1769093439161,-151.0,0.00023079,2]
[403034071,1769093439173,-598.98753968,0.00023279,2]
[403034073,1769093439183,-15787.4517246,0.00023386,2]
[403034075,1769093439194,-1000.0,0.000235,2]
[403034077,1769093439204,-500.0,0.00023518,2]
[403034078,1769093439214,-4246.25,0.00023518,2]
[403034080,1769093439225,-1414.99,0.00023519,2]
[403034082,1769093439235,-1414.99,0.00023519,2]
[403034083,1769093439245,-2075.22997905,0.0002352,2]
[403034085,1769093439255,-150.0,0.00023526,2]
[403034087,1769093439265,-150.0,0.00023526,2]
[403034088,1769093439275,-150.0,0.00023526,2]
[403034090,1769093439285,-151.0,0.00023539,2]
[403034092,1769093439294,-150.0,0.00023663,2]
[403034093,1769093439304,-150.0,0.00023663,2]
[403034095,1769093439313,-150.0,0.00023663,2]
[403034097,1769093439323,-150.0,0.00023663,2]
[403034098,1769093439332,-24318.09,0.0002369,10]
[403034100,1769093439341,-986.67,0.000237,2]
[403034102,1769093439351,-177.01,0.000237,2]
[403034105,1769093439361,-177.01,0.000237,2]
[403034107,1769093439370,-177.01,0.000237,2]
[403034109,1769093439379,-150.0,0.000238,2]
[403034111,1769093439388,-150.0,0.000238,2]
[403034112,1769093439397,-150.0,0.000238,2]
[403034114,1769093439406,-986.67,0.000238,2]
[403034116,1769093439416,-333.78919577,0.000238,2]
[403034118,1769093439426,-1030.71205781,0.00023867,2]
[403034119,1769093439436,-500.0,0.00023899,2]
[403034121,1769093439450,-500.0,0.00023899,2]
[403034123,1769093439460,-500.0,0.00023899,2]
[403034125,1769093439469,-500.0,0.00023899,2]
[403034126,1769093439479,-500.0,0.00023899,2]
[403034128,1769093439488,-500.0,0.00023899,2]
[403034130,1769093439497,-500.0,0.00023899,2]
[403034131,1769093439507,-500.0,0.00023899,2]
[403034133,1769093439518,-500.0,0.00023899,2]
[403034135,1769093439527,-291.91,0.00023899,2]
[403034137,1769093439536,-1000000.0,0.000239,2]
[403034139,1769093439546,-1996.4,0.000239,14]
[403034141,1769093439555,-151.0,0.000239,6]
[403034142,1769093439565,-151.0,0.000239,8]
[403034144,1769093439574,-151.0,0.000239,8]
[403034146,1769093439583,-151.0,0.000239,6]
[403034148,1769093439593,-151.0,0.000239,6]
[403034150,1769093439601,-151.0,0.000239,8]
[403034152,1769093439611,-1637.89,0.000239,2]
[403034153,1769093439620,-1637.89,0.000239,2]
[403034156,1769093439629,-1637.89,0.000239,2]
[403034158,1769093439638,-1637.89,0.000239,2]
[403034161,1769093439647,-1637.89,0.000239,2]
[403034164,1769093439657,-1637.89,0.000239,2]
[403034166,1769093439666,-1637.89,0.000239,2]
[403034168,1769093439676,-1637.89,0.000239,2]
[403034170,1769093439685,-1637.89,0.000239,2]
[403034171,1769093439696,-1637.89,0.000239,2]
[403034173,1769093439705,-1637.89,0.000239,2]
[403034175,1769093439714,-1637.89,0.000239,2]
[403034177,1769093439723,-1637.89,0.000239,2]
[403034179,1769093439733,-1637.89,0.000239,2]
[403034180,1769093439742,-1637.89,0.000239,2]
[403034182,1769093439751,-1637.89,0.000239,2]
[403034184,1769093439760,-1637.89,0.000239,2]
[403034186,1769093439769,-1637.89,0.000239,2]
[403034188,1769093439778,-1637.89,0.000239,2]
[403034189,1769093439787,-1637.89,0.000239,2]
[403034191,1769093439796,-1637.89,0.000239,2]
[403034193,1769093439805,-1637.89,0.000239,2]
[403034195,1769093439815,-1637.89,0.000239,2]
[403034197,1769093439824,-1637.89,0.000239,2]
[403034199,1769093439834,-1637.89,0.000239,2]
[403034200,1769093439843,-1637.89,0.000239,2]
[403034202,1769093439852,-1637.89,0.000239,2]
[403034204,1769093439862,-1637.89,0.000239,2]
[403034206,1769093439871,-1637.89,0.000239,2]
[403034208,1769093439880,-1637.89,0.000239,2]
[403034209,1769093439889,-1637.89,0.000239,2]
[403034211,1769093439898,-1637.89,0.000239,2]
[403034213,1769093439907,-1637.89,0.000239,2]
[403034215,1769093439916,-1637.89,0.000239,2]
[403034216,1769093439925,-2423.38,0.000239,2]
[403034218,1769093439934,-150.0,0.00023937,2]
[403034220,1769093439945,-150.0,0.00023937,2]
[403034222,1769093439953,-1414.99,0.00023989,2]
[403034224,1769093439962,-1414.99,0.00023989,2]
[403034226,1769093439972,-1414.99,0.00023999,2]
[403034227,1769093439982,-1414.99,0.00023999,2]
[403034229,1769093439991,-22819.99057534,0.00024,7]
[403034231,1769093440001,-1058.93,0.00024,2]
[403034233,1769093440009,-859.2,0.00024,7]